Cogmind - Beta 16 @@@ ROGUE MODE // 2025.11.13 @ 22:36:23 // AFD2019/Pay2Buy Player: GFYguy Result: Self-destructed Performance ------------- Evolutions (1) 500 Regions Visited (3) 600 Robots Destroyed (20) 100 Value Destroyed (415) 415 Prototype IDs (3) 60 Alien Tech Used (0) 0 Bonus (0) 0 TOTAL SCORE: 1675 Bonus ------- None Cogmind --------- Core Integrity 400/400 Matter 270/300 Energy 52/125 System Corruption 0% Temperature Cool (0) Movement Hovering (42) Location -9/Materials Parts ------- > --- POWER (1) -------- Light Ion Engine > --- PROPULSION (3) --- Aerolev Unit Aerolev Unit Aerolev Unit > --- UTILITY (3) ------ Signal Interpreter > --- WEAPON (2) ------- Maul Maul > --- INVENTORY (10) --- Improved Ion Engine VTOL Module Improved Flight Unit Experimental Sensor Array Plasma Flamer Peak State ------------ > --- POWER ------------ Light Ion Engine > --- PROPULSION ------- Aerolev Unit Aerolev Unit Aerolev Unit > --- UTILITY ---------- Signal Interpreter > --- WEAPON ----------- Maul Maul > --- INVENTORY -------- Improved Ion Engine VTOL Module Improved Flight Unit Experimental Sensor Array Plasma Flamer [Rating: 20] Favorites ----------- Power Light Ion Engine Engine Light Ion Engine Propulsion VTOL Module Hover Unit Aerolev Unit Flight Unit VTOL Module Utility Signal Interpreter Device Sensor Array Processor Signal Interpreter Weapon Maul Impact Weapon Maul Build | -11 -10 -10 -9 ------- Run | Yrd Mat Min Mat Slots Evolved 2 | . . . 2 Power . | . . . . Propulsion 1 | . . . 1 Utility 1 | . . . 1 Weapon . | . . . . Parts Attached 6 | . 2 1 3 Power 1 | . . . 1 Engine 1 | . . . 1 Core . | . . . . Reactor . | . . . . Propulsion 2 | . . . 2 Treads . | . . . . Leg . | . . . . Wheel . | . . . . Hover 2 | . . . 2 Flight . | . . . . Utility 3 | . 2 1 . Device 2 | . 1 1 . Storage . | . . . . Processor 1 | . 1 . . Hackware . | . . . . Protection . | . . . . Artifact . | . . . . Weapon . | . . . . Energy Gun . | . . . . Energy Cannon . | . . . . Ballistic Gun . | . . . . Ballistic Cannon . | . . . . Launcher . | . . . . Special Weapon . | . . . . Impact Weapon . | . . . . Slashing Weapon . | . . . . Piercing Weapon . | . . . . Special Melee Weapon . | . . . . Unidentified Prototypes 1 | . . 1 . Parts Lost 2 | . 1 1 . Power . | . . . . Propulsion 1 | . 1 . . Utility 1 | . . 1 . Weapon . | . . . . Highest Loss Streak 1 | . 1 1 . To Critical Strikes . | . . . . Average Backups . | . . 1 3 Power . | . . . 1 Propulsion . | . . . . Utility . | . . . 1 Weapon . | . . . 1 Tool/Special . | . . . . Unused Backups 2 | . . . 2 Power 1 | . . . 1 Propulsion . | . . . . Utility . | . . . . Weapon 1 | . . . 1 Tool/Special . | . . . . Average Slot Usage (%) 82 | . 81 84 66 Flight 27 | . 26 28 22 Device 12 | . 12 13 . Processor 13 | . 12 14 11 Impact Weapon 27 | . 28 28 22 Peak Build Rating 20 | 8 11 19 20 Average Rating 10 | 8 9 11 17 On Entrance 7 | . 8 11 11 Avg Prop Armor Cover (%) . | . . . . Naked Turns . | . . . . Heaviest Build 10 | 6 7 10 . Greatest Support 9 | 8 9 9 . Greatest Overweight (x) 1 | . . 1 . Average Overweight (x) . | . . . . Largest Inventory Capacity 10 | 10 10 10 10 Average Capacity 10 | 10 10 10 10 Most Carried 5 | . 1 4 5 Average Carried . | . . 1 4 Final Capacity 10 | 10 10 10 10 Final Carried 5 | . . 4 5 Class Distribution -------------------- 54% | Mutant 45% | Sprinter Dominant Class ---------------- Sprinter | -10/Materials Mutant | -10/Mines Mutant | -9/Materials Resources | -11 -10 -10 -9 ----------- Run | Yrd Mat Min Mat Matter Collected 235 | 70 150 15 . Remotely . | . . . . Salvage Created 425 | 70 294 61 . Parts . | . . . . Haulers Intercepted . | . . . . Recyclers Shooed . | . . . . Parts Field Recycled . | . . . . Retrieved Matter . | . . . . Parts Self-Destructed . | . . . . Prevented . | . . . . Parts Restored . | . . . . Kills | -11 -10 -10 -9 ------- Run | Yrd Mat Min Mat Combat Hostiles Destroyed 15 | . 10 5 . Melee 10 | . 7 3 . Classes Destroyed 5 | 2 3 . . Tunneler 1 | 1 . . . Recycler 1 | 1 . . . Watcher 3 | . 3 . . Swarmer 8 | . 3 5 . Grunt 7 | . 7 . . Best Kill Streak 6 | 2 6 3 . Combat Bots Only 3 | . 3 3 . Max Kills in Single Turn 1 | 1 1 1 . Gunslinging . | . . . . Exploded . | . . . . Melee 1 | . 1 1 . Uniques/NPCs Destroyed . | . . . . Combat | -11 -10 -10 -9 -------- Run | Yrd Mat Min Mat Hostile Shots Fired 72 | . 50 22 . Missed 32 | . 20 12 . Hits 40 | . 30 10 . Projectile 40 | . 30 10 . Damage Taken 391 | . 308 83 . Core 182 | . 143 39 . Absorbed by Shields . | . . . . Core Remaining (%) 63 | 100 . 27 . Volleys Fired . | . . . . Largest . | . . . . Hottest . | . . . . Shots Fired . | . . . . Gun . | . . . . Cannon . | . . . . Launcher . | . . . . Special . | . . . . Kinetic . | . . . . Thermal . | . . . . Explosive . | . . . . Electromagnetic . | . . . . Robot Hit Streak . | . . . . Robot Miss Streak . | . . . . Penetration Max . | . . . . Secondary Targets . | . . . . Shots Hit Robots 35 | 2 25 8 . Core Hits 9 | 1 6 2 . Critical Kills 2 | . 1 1 . Critical Parts Destroyed 6 | . 4 2 . Critical Strikes 8 | . 5 3 . Smash 8 | . 5 3 . Melee Attacks 53 | 3 37 13 . Impact 53 | 3 37 13 . Slashing . | . . . . Piercing . | . . . . Sneak Attacks 2 | 2 . . . Combat Hostiles . | . . . . Follow-up Attacks 5 | . 3 2 . Damage Inflicted 1509 | 147 1028 334 . Guns . | . . . . Cannons . | . . . . Explosions . | . . . . Melee 1509 | 147 1028 334 . Ramming . | . . . . Kinetic . | . . . . Thermal . | . . . . Explosive . | . . . . Electromagnetic . | . . . . Impact 1509 | 147 1028 334 . Slashing . | . . . . Piercing . | . . . . Highest Corruption . | . . . . Average Corruption . | . . . . Corruption Purged . | . . . . Corruption Blocked . | . . . . Overload Shots . | . . . . Overflow Damage 407 | 30 289 88 . Projectiles . | . . . . Explosions . | . . . . Melee 407 | 30 289 88 . Knockbacks 5 | . 4 1 . Impact 5 | . 4 1 . Kinetic . | . . . . Secondary . | . . . . Self-Inflicted Damage . | . . . . Shots . | . . . . Rammed . | . . . . Targets Rammed . | . . . . Kicked . | . . . . Crushed . | . . . . Highest Temperature . | . . . . Average Temperature . | . . . . Received Heat Transfer 120 | . 120 . . Siege Activations . | . . . . Martial Activations . | . . . . Shielding Activations . | . . . . Robots Disrupted . | . . . . Combat Hostiles . | . . . . Robots Corrupted 7 | . 5 2 . Combat Hostiles 5 | . 3 2 . Parts Fried . | . . . . Impact Corruptions 17 | 1 12 4 . Robots Melted . | . . . . Combat Hostiles . | . . . . Parts Melted . | . . . . Heat Transferred . | . . . . Parts Sabotaged . | . . . . Parts Stolen . | . . . . Parts Stripped . | . . . . Power Chain Reactions . | . . . . Alert | -11 -10 -10 -9 ------- Run | Yrd Mat Min Mat Maximum Alert Level 1 | . 1 . . Low Security (%) 96 | 100 92 100 100 Level 1 3 | . 7 . . Level 2 . | . . . . Level 3 . | . . . . Level 4 . | . . . . Level 5 . | . . . . High Security . | . . . . Max Security . | . . . . Peak Influence 212 | 10 212 128 31 Initial 78 | . 6 78 31 Average 86 | 5 90 88 31 Influence Increases 471 | 10 336 125 . Destroy 0b10 Robot/C 300 | . 200 100 . Destroy 0b10 Robot/NC 25 | 10 15 . . Destroy Leader 56 | . 46 10 . Disable Machine 15 | . 15 . . Partial Spotted 15 | . 15 . . Lose Combat Pursuer 60 | . 45 15 . Influence Decreases 440 | . 144 244 52 Entered New Map 180 | . 4 124 52 Time Decay 240 | . 130 110 . Lost Part 20 | . 10 10 . Squads Dispatched 1 | . 1 . . Investigation 1 | . 1 . . Extermination . | . . . . Reinforcement . | . . . . Assault . | . . . . Garrison . | . . . . Intercept . | . . . . Searches Triggered . | . . . . Construction Impeded . | . . . . Haulers Reinforced . | . . . . Active Scanning Responses . | . . . . Cargo Convoy Interrupts . | . . . . Stealth | -11 -10 -10 -9 --------- Run | Yrd Mat Min Mat Distress Signals 1 | . 1 . . Communications Jammed . | . . . . Distress Signals . | . . . . Times Spotted 21 | . 15 6 . Peak Tracking Total 5 | . 5 3 . Tactical Retreats 2 | . 1 1 . Traps | -11 -10 -10 -9 ------- Run | Yrd Mat Min Mat Traps Triggered 1 | . 1 . . Indirectly . | . . . . Trap Hack Attempts . | . . . . Triggered . | . . . . Disarmed . | . . . . Reprogrammed . | . . . . Reused . | . . . . Traps Extracted . | . . . . Installed . | . . . . Triggered . | . . . . Machines | -11 -10 -10 -9 ---------- Run | Yrd Mat Min Mat Machines Disabled 1 | . 1 . . Max in Single Turn 1 | . 1 . . Machines Repaired . | . . . . Machines Dismantled . | . . . . Machines Sabotaged . | . . . . Overloaded Fab Kills . | . . . . Hacking | -11 -10 -10 -9 --------- Run | Yrd Mat Min Mat Machines Accessed . | . . . . Terminals . | . . . . Fabricators . | . . . . Repair Stations . | . . . . Recycling Units . | . . . . Scanalyzers . | . . . . Garrison Access . | . . . . Total Hacks . | . . . . Successful . | . . . . Failed . | . . . . Catastrophic . | . . . . Database Lockouts . | . . . . Manual . | . . . . Terminals . | . . . . Fabricators . | . . . . Repair Stations . | . . . . Recycling Units . | . . . . Scanalyzers . | . . . . Garrison Access . | . . . . Terminal Hacks . | . . . . Fabricator Hacks . | . . . . Repair Station Hacks . | . . . . Recycling Unit Hacks . | . . . . Scanalyzer . | . . . . Garrison Access Hacks . | . . . . Unauthorized Hacks . | . . . . Terminals . | . . . . Fabricators . | . . . . Repair Stations . | . . . . Recycling Units . | . . . . Scanalyzers . | . . . . Garrison Access . | . . . . Data Cores Recovered . | . . . . Used . | . . . . Hacking Detections . | . . . . Full Trace Events . | . . . . Feedback Events . | . . . . Feedback Blocked . | . . . . Robot Schematics Acquired . | . . . . Robots Built . | . . . . Authchips . | . . . . Time . | . . . . Total Robot Build Rating . | . . . . Part Schematics Acquired . | . . . . Parts Built . | . . . . Authchips . | . . . . Time . | . . . . Total Part Build Rating . | . . . . Part Studies Acquired . | . . . . Parts Repaired . | . . . . Time . | . . . . Parts Recycled . | . . . . Recycled Matter . | . . . . Retrieved Matter . | . . . . Retrieved Components . | . . . . Parts Scanalyzed . | . . . . Part Schematics Acquired . | . . . . Parts Damaged . | . . . . Bothacking | -11 -10 -10 -9 ------------ Run | Yrd Mat Min Mat Used RIF Installer . | . . . . Robots Hacked . | . . . . Non-combat . | . . . . Combat . | . . . . Robot Hacks Applied . | . . . . Relay Couplers Released . | . . . . Fabnet Peak Effective % . | . . . . Robots Rewired . | . . . . Allies Hacked . | . . . . Hacks Repelled . | . . . . Allies | -11 -10 -10 -9 -------- Run | Yrd Mat Min Mat Total Allies . | . . . . Largest Group . | . . . . Highest-Rated Group . | . . . . Highest-Rated Ally . | . . . . Total Orders . | . . . . Ally Attacks . | . . . . Total Damage . | . . . . Kills . | . . . . Allies Corrupted . | . . . . Allies Melted . | . . . . Intel | -11 -10 -10 -9 ------- Run | Yrd Mat Min Mat Active Infowar (turns) 462 | . 248 214 . Sensors 462 | . 248 214 . Robot Analysis Total . | . . . . Derelict Logs Recovered . | . . . . Drone Launches . | . . . . Drone Recoveries . | . . . . Exploration | -11 -10 -10 -9 ------------- Run | Yrd Mat Min Mat Turns Passed 512 | 18 261 229 4 Spaces Moved 952 | 34 438 480 . Core . | . . . . Treads . | . . . . Legs . | . . . . Wheels . | . . . . Hover . | . . . . Flight 952 | 34 438 480 . Fastest Speed 32 | 32 32 34 . Average Speed 33 | 32 32 34 . Slowest Speed 109 | 32 34 109 . Overloaded Moves . | . . . . Propulsion Burnouts . | . . . . Robots Hopped 4 | . 2 2 . Potential Cave-ins . | . . . . Cave-ins Triggered . | . . . . Exploration Rate (%) 39 | 3 71 83 1 Regions Visited 3 Branch Regions 1 Pre-discovered Areas . | . . . . Known Exits Taken 2 | . 1 1 . Unknown Exits Taken 1 | 1 . . . Scrap Searched . | . . . . Spaces Dug . | . . . . Terrain Destroyed . | . . . . Melee . | . . . . Projectile . | . . . . AOE . | . . . . Terrain Rammed . | . . . . Walls Destroyed . | . . . . Machines Disabled . | . . . . Actions | -11 -10 -10 -9 --------- Run | Yrd Mat Min Mat Total 1047 | 35 491 518 3 Wait 47 | . 22 25 . Move 941 | 33 433 475 . Hop 4 | . 2 2 . Pick Up 4 | . 2 2 . Fast Attach . | . . . . Attach 3 | . 2 . 1 Detach 1 | . . 1 . Swap 4 | . . 2 2 Drop . | . . . . Fire . | . . . . Melee 43 | 2 30 11 . Ram . | . . . . Kick . | . . . . Crush . | . . . . Escape Stasis . | . . . . Rewire . | . . . . Trap . | . . . . Miscellaneous . | . . . . Route ------- -11/Scrapyard -10/Materials (discovered 2 exits: *Mat / *Min) -10/Mines (discovered 2 exits: *Mat x2) -9/Materials History --------- Turn | Location | Event 3 | -11/Scrapyard | Discovered new exit (range 12) 19 | -11/Scrapyard | Entered Materials 139 | -10/Materials | Discovered new exit (range 12) 143 | -10/Materials | Identified exit to Materials 247 | -10/Materials | Core integrity fell below 50% 276 | -10/Materials | Discovered new exit (range 12) 280 | -10/Materials | Identified exit to Mines 280 | -10/Materials | Entered Mines 307 | -10/Mines | Discovered exit to Materials (range 9) 350 | -10/Mines | Found a damaged Exp. Sensor Array with a note attached 351 | -10/Mines | Found Prototype Device 352 | -10/Mines | Identified Exp. Sensor Array 425 | -10/Mines | A weapon hastily lodged in a ceiling crevice suddenly fell to the ground 507 | -10/Mines | Discovered exit to Materials (range 6) 509 | -10/Mines | Entered Materials 509 | -9/Materials | Evolved 2 slots: Propulsion x1, Utility x1 513 | -9/Materials | Self-destructed Last Messages --------------- 00427_ K-01 Serf collects debris. 00478_ Maul follow-up attack on S-10 Pest. 00478_ Destroyed Lgt. Ion Engine. 00478_ S-10 Pest system corrupted by crushing effect. 00479_ S-10 Pest system terminally corrupted. 00482_ Acquired 14 matter. 00482_ S-10 Pest knocked back. 00485_ S-10 Pest suffers critical hit (Smash). 00485_ Destroyed Lgt. Assault Rifle. 00485_ S-10 Pest system corrupted by crushing effect. 00494_ Sensor Array destroyed. 00496_ Maul follow-up attack on S-10 Pest. 00496_ S-10 Pest suffers critical hit (Smash). 00496_ S-10 Pest destroyed. 00500_ Acquired 1 matter. 00507_ EXIT=FOUND: MATERIALS PARAMETERS=PROPULSION+1,UTILITY+1 LOCATION=MATERIALS GOAL=ESCAPE [Purchased: Aerolev Unit] Map ----- +----------------------------------------------------+ | ????????????????????????????????? | | ????????????????????????????????? | | ????????????????????????????????? | | ????????????????????????????????? | | ????????????????????????????????? | | ????????????????????????????????? | | ????????????????????????????????? | | ????????????????????????????????? | | ????????????????????????????????? | | ????????????????????????????????? | | ??????? ??????????????????????? | | ??????? ??????????????????????? | | ??????? ??????????????????????? | | ??????# #?????????????????????? | | ??????# #?????????????????????? | | ??????# #?????????????????????? | | ??????+ +?????????????????????? | | ??????# #?????????????????????? | | ??????# #?????????????????????? | | ??????# #?????????????????????? | | ??????# #?????????????????????? | | ??????# #?????????????????????? | | ??????# #?????????????????????? | | ??????# +?????????????????????? | | ??????# #?????????????????????? | | ??????# @ #?????????????????????? | | ??????# #?????????????????????? | | ??????#####?????????????????????? | | ????????????????????????????????? | | ????????????????????????????????? | | ????????????????????????????????? | | ????????????????????????????????? | | ????????????????????????????????? | | ????????????????????????????????? | | ????????????????????????????????? | | ????????????????????????????????? | | ????????????????????????????????? | | ????????????????????????????????? | | ????????????????????????????????? | | | | | | | | | | | | | | | | | | | | | | | +----------------------------------------------------+ Best States ------------- Heat Dissipation 28 Energy Generation 10 Energy Capacity 125 Matter Stores 300 Matter Capacity 300 Sight Range 16 Robot Scan Range 14 Terrain Scan Density 10 Evasion (%) 63 Item Schematics ----------------- None Robot Schematics ------------------ None Fabricated ------------ Nothing Repaired ---------- Nothing Studied --------- None Alien Tech Used ----------------- None Achievements -------------- Overwhelming Challenges ------------ None Cogshop Purchases (10) ------------------------ VTOL Module (1049) VTOL Module (1049) Maul (629) Maul (629) Imp. Flight Unit (576) Lgt. Ion Engine (287) Imp. Ion Engine (335) Aerolev Unit (897) Aerolev Unit (897) Aerolev Unit (897) Game ------ Seed BombardmentDisruptionLegs Manual? 0 Play Time 00:10:21 Cumulative 39.6 hours Start 2025.11.13 @ 22:25:55 End 2025.11.13 @ 22:36:23 Sessions 1 Manual Loads 0 Difficulty Rogue Special Mode AFD2019/Pay2Buy Game No. 73 Rogue 73 Adventurer 0 Explorer 0 Win Type - Total 0 Types 0/0/0/0/0/0/0/0/0/0 Lore% 14 Gallery% 31 Achievement% 18 Wizard Run 0 Options --------- Layout 0 ASCII 0 Keyboard 0 Movement Mouse Keybinds 0 Fullscreen 2 Font 18/SmallcapsGlow Map View 76x50 Zoom Use 0% Tactical HUD 1 Map Filters NONE Filters NONE Steam 1 RUN: 576a068f-68bc-4700-9bc5-8e68640e5cbd